fUSD/lending_fUSD_20260420
["ID","MTS","AMOUNT","RATE_DAILY","PERIOD"]
[420875722,1776693040339,-301.00069851,9.566e-05,2]
[420875723,1776693040348,-155.0,9.571e-05,2]
[420875724,1776693040359,-151.0,9.589e-05,2]
[420875725,1776693040368,-151.0,9.589e-05,2]
[420875726,1776693040378,-1009.68527655,9.653e-05,2]
[420875727,1776693040493,-990.31472345,9.653e-05,2]
[420875728,1776693040502,-251.88690988,9.653e-05,2]
[420875729,1776693040514,-701.42038979,9.653e-05,2]
[420875730,1776693040543,-646.69270033,9.653e-05,2]
[420875731,1776693040553,-164.76,9.713e-05,2]
[420875732,1776693040564,-166.41,9.724e-05,2]
[420875733,1776693040574,-205.0,9.8e-05,2]
[420875734,1776693040584,-1207.2,9.823e-05,2]
[420875735,1776693040593,-164.92,9.863e-05,2]
[420875736,1776693040602,-151.0,9.872e-05,2]
[420875737,1776693040612,-33078.91,9.874e-05,2]
[420875738,1776693040622,-1000.0,9.874e-05,2]
[420875739,1776693040631,-5339.87545459,9.875e-05,2]
[420875740,1776693040641,-2994.08658357,9.9e-05,14]
[420875741,1776693040650,-151.0,9.902e-05,2]
[420875742,1776693040660,-747.61979303,9.922e-05,2]
[420875743,1776693040669,-334.9344153,9.926e-05,2]
[420875744,1776693040678,-347.0,9.974e-05,5]
[420875745,1776693040688,-151.0,9.975e-05,2]
[420875746,1776693040697,-151.0,9.975e-05,2]
[420875747,1776693040709,-151.0,9.975e-05,2]
[420875748,1776693040718,-151.0,9.975e-05,2]
[420875749,1776693040728,-151.0,9.975e-05,2]
[420875750,1776693040737,-7897.55379883,0.0001,2]
[420875751,1776693040747,-526.58483048,0.0001,2]
[420875752,1776693040757,-151.0,0.0001,2]
[420875753,1776693040766,-1200.0,0.0001,2]
[420875754,1776693040778,-200.0,0.0001,2]
[420875755,1776693040788,-500.0,0.0001,2]
[420875756,1776693040797,-500.0,0.0001,2]
[420875757,1776693040806,-500.0,0.0001,2]
[420875758,1776693040815,-500.0,0.0001,2]
[420875759,1776693040825,-500.0,0.0001,2]
[420875760,1776693040834,-500.0,0.0001,2]
[420875761,1776693040844,-500.0,0.0001,2]
[420875762,1776693040853,-500.0,0.0001,2]
[420875763,1776693040862,-500.0,0.0001,2]
[420875764,1776693040871,-500.0,0.0001,2]
[420875765,1776693040880,-500.0,0.0001,2]
[420875766,1776693040890,-500.0,0.0001,2]
[420875767,1776693040899,-500.0,0.0001,2]
[420875768,1776693040908,-151.0,0.0001,2]
[420875769,1776693040918,-151.0,0.0001,2]
[420875770,1776693040928,-151.0,0.0001,2]
[420875771,1776693040938,-151.0,0.0001,2]
[420875772,1776693040948,-151.0,0.0001,2]
[420875773,1776693040957,-151.0,0.0001,2]
[420875774,1776693040967,-151.0,0.0001,2]
[420875775,1776693040978,-151.0,0.0001,2]
[420875776,1776693040987,-151.0,0.0001,2]
[420875777,1776693040997,-151.0,0.0001,2]
[420875778,1776693041007,-151.0,0.0001,2]
[420875779,1776693041016,-151.0,0.0001,2]
[420875780,1776693041026,-151.0,0.0001,2]
[420875781,1776693041035,-151.0,0.0001,2]
[420875782,1776693041044,-151.0,0.0001,2]
[420875783,1776693041054,-151.0,0.0001,2]
[420875784,1776693041063,-151.0,0.0001,2]
[420875785,1776693041072,-151.0,0.0001,2]
[420875786,1776693041082,-151.0,0.0001,2]
[420875787,1776693041091,-151.0,0.0001,2]
[420875788,1776693041100,-500.0,0.0001,2]
[420875789,1776693041109,-151.0,0.0001,2]
[420875790,1776693041118,-151.0,0.0001,2]
[420875791,1776693041127,-500.0,0.0001,2]
[420875792,1776693041136,-151.0,0.0001,2]
[420875793,1776693041146,-151.0,0.0001,2]
[420875794,1776693041155,-500.0,0.0001,2]
[420875795,1776693041165,-151.0,0.0001,2]
[420875796,1776693041174,-151.0,0.0001,2]
[420875797,1776693041184,-500.0,0.0001,2]
[420875798,1776693041194,-151.0,0.0001,2]
[420875799,1776693041204,-500.0,0.0001,2]
[420875800,1776693041213,-151.0,0.0001,2]
[420875801,1776693041223,-500.0,0.0001,2]
[420875802,1776693041232,-151.0,0.0001,2]
[420875803,1776693041242,-500.0,0.0001,2]
[420875804,1776693041251,-151.0,0.0001,2]
[420875805,1776693041261,-500.0,0.0001,2]
[420875806,1776693041272,-151.0,0.0001,2]
[420875807,1776693041282,-500.0,0.0001,2]
[420875808,1776693041292,-151.0,0.0001,2]
[420875809,1776693041301,-500.0,0.0001,2]
[420875810,1776693041311,-151.0,0.0001,2]
[420875811,1776693041321,-500.0,0.0001,2]
[420875812,1776693041330,-500.0,0.0001,2]
[420875813,1776693041340,-500.0,0.0001,2]
[420875814,1776693041350,-151.0,0.0001,2]
[420875815,1776693041360,-1063.66838,0.0001,2]
[420875816,1776693041370,-1063.66839,0.0001,2]
[420875817,1776693041379,-1063.66839,0.0001,2]
[420875818,1776693041389,-1063.66839,0.0001,2]
[420875819,1776693041399,-1289.58892491,0.0001,2]
[420875820,1776693041408,-151.0,0.0001,2]
[420875821,1776693041417,-1063.66839,0.0001,2]
[420875822,1776693041427,-1063.66839,0.0001,2]
[420875823,1776693041437,-435.80785392,0.0001,2]
[420875824,1776693041447,-164.76,0.00010005,2]
[420875825,1776693041456,-500.0,0.00010008,2]
[420875826,1776693041466,-1503.29633906,0.00010008,2]
[420875827,1776693041475,-433.0,0.00010038,2]
[420875828,1776693041484,-2351.0,0.00010038,2]
[420875829,1776693041493,-151.0,0.00010068,2]
[420875830,1776693041504,-151.0,0.00010068,2]
[420875831,1776693041513,-157.830296,0.00010068,2]
[420875832,1776693041522,-1058.91104,0.00010068,2]
[420875833,1776693041531,-1058.91104,0.00010068,2]
[420875834,1776693041540,-1058.91104,0.00010068,2]
[420875835,1776693041550,-1058.91104,0.00010068,2]
[420875836,1776693041559,-151.0,0.00010068,2]
[420875837,1776693041569,-151.0,0.00010068,2]
[420875838,1776693041578,-151.0,0.00010068,2]
[420875839,1776693041587,-151.0,0.00010068,2]
[420875840,1776693041596,-151.0,0.00010068,2]
[420875841,1776693041605,-172.992407,0.00010068,2]
[420875842,1776693041615,-1270.017594,0.00010068,2]
[420875843,1776693041624,-1270.017594,0.00010068,2]
[420875844,1776693041632,-1270.017594,0.00010068,2]
[420875845,1776693041641,-1270.017594,0.00010068,2]
[420875846,1776693041650,-161379.7311565,0.00010068,2]
[420875847,1776693041660,-3009.8366492,0.00010068,2]
[420875848,1776693041669,-500.0,0.00010068,2]
[420875849,1776693041678,-1000.0,0.00010068,2]
[420875850,1776693041687,-151.0,0.0001008,2]
[420875851,1776693041696,-151.0,0.0001008,2]
[420875852,1776693041706,-151.0,0.00010081,2]
[420875853,1776693041716,-1207.2,0.00010097,2]
[420875854,1776693041725,-151.0,0.00010099,2]
[420875855,1776693041735,-151.0,0.00010099,2]
[420875856,1776693041745,-501.0,0.0001011,2]
[420875857,1776693041754,-274.46228735,0.00010114,2]
[420875858,1776693041764,-200.0,0.00010114,2]
[420875859,1776693041773,-1481.23780761,0.00010114,2]
[420875860,1776693041783,-829.12830338,0.00010114,2]
[420875861,1776693041792,-194.72792766,0.00010114,2]
[420875862,1776693041802,-217.15233878,0.00010114,2]
[420875863,1776693041811,-312.13772435,0.00010114,2]
[420875864,1776693041820,-7411.0094015,0.0001017,2]
[420875865,1776693041829,-250.0,0.00010192,3]
[420875866,1776693041838,-225.69,0.00010192,3]
[420875867,1776693041847,-504.604613,0.00010285,2]
[420875868,1776693041857,-193.100639,0.00010285,2]
[420875869,1776693041867,-439.416863,0.00010285,2]
[420875870,1776693041876,-210.745363,0.00010285,2]
[420875871,1776693041885,-164.76,0.00010297,2]
[420875872,1776693041895,-1207.21505446,0.00010371,2]
[420875873,1776693041905,-435.80785392,0.00010372,2]
[420875874,1776693041914,-168.61,0.0001051,2]
[420875875,1776693041924,-200.0,0.00010548,2]
[420875876,1776693041933,-1337.30371513,0.00010548,2]
[420875877,1776693041943,-151.0,0.00010548,2]
[420875878,1776693041952,-832.51,0.000106,2]
[420875879,1776693041961,-301.06735585,0.000106,2]
[420875880,1776693041972,-7295.12377389,0.00010655,2]
[420875881,1776693041983,-1536.04360649,0.00010662,2]
[420875882,1776693041991,-859.80605061,0.00010662,2]
[420875883,1776693042000,-201.93286099,0.00010662,2]
[420875884,1776693042010,-225.18697532,0.00010662,2]
[420875885,1776693042019,-329.22534381,0.00010662,2]
[420875886,1776693042029,-232.085259,0.00010678,2]
[420875887,1776693042038,-164.92,0.00010685,2]
[420875888,1776693042047,-753.69842267,0.0001069,2]
[420875889,1776693042057,-270.58625134,0.000107,2]
[420875890,1776693042066,-241501.93403364,0.000107,2]
[420875891,1776693042075,-494547.55010839,0.000107,2]
[420875892,1776693042084,-151.0,0.000107,2]
[420875893,1776693042093,-151.0,0.000107,2]
[420875894,1776693042102,-151.0,0.000107,2]
[420875895,1776693042111,-151.0,0.000107,2]
[420875896,1776693042120,-151.0,0.000107,2]
[420875897,1776693042129,-151.0,0.000107,2]
[420875898,1776693042139,-287.27336,0.000107,2]
[420875899,1776693042148,-151.0,0.000107,2]
[420875900,1776693042158,-153.69662,0.000107,2]
[420875901,1776693042168,-151.0,0.000107,2]
[420875902,1776693042178,-151.0,0.000107,2]
[420875903,1776693042187,-151.0,0.000107,2]
[420875904,1776693042196,-151.0,0.000107,2]
[420875905,1776693042205,-1058.91104,0.000107,2]
[420875906,1776693042215,-1058.91104,0.000107,2]
[420875907,1776693042224,-1058.91104,0.000107,2]
[420875908,1776693042233,-1058.91104,0.000107,2]
[420875909,1776693042242,-1058.91104,0.000107,2]
[420875910,1776693042251,-1058.91104,0.000107,2]
[420875911,1776693042261,-1058.91104,0.000107,2]
[420875912,1776693042270,-151.0,0.000107,2]
[420875913,1776693042280,-151.0,0.000107,2]
[420875914,1776693042289,-157.586443,0.000107,2]
[420875915,1776693042299,-1058.91104,0.000107,2]
[420875916,1776693042308,-151.0,0.000107,2]
[420875917,1776693042318,-151.0,0.000107,2]
[420875918,1776693042327,-151.0,0.000107,2]
[420875919,1776693042336,-151.0,0.000107,2]
[420875920,1776693042346,-151.0,0.000107,2]
[420875921,1776693042356,-151.0,0.000107,2]
[420875922,1776693042366,-1270.017594,0.000107,2]
[420875923,1776693042375,-1270.017594,0.000107,2]
[420875924,1776693042384,-1270.017594,0.000107,2]
[420875925,1776693042394,-1270.017594,0.000107,2]
[420875926,1776693042403,-1270.017594,0.000107,2]
[420875927,1776693042412,-1270.017594,0.000107,2]
[420875928,1776693042421,-1270.017594,0.000107,2]
[420875929,1776693042430,-1270.017594,0.000107,2]
[420875930,1776693042439,-178.02852215,0.00010711,7]
[420875932,1776693042448,-2000.0,0.00010726,2]
[420875934,1776693042458,-1600.0,0.00010726,2]
[420875936,1776693042467,-3528.0,0.00010792,2]
[420875938,1776693042476,-695.711,0.00010792,2]
[420875939,1776693042485,-1349.0,0.00010792,2]
[420875940,1776693042495,-1051.294,0.00010792,2]
[420875941,1776693042504,-1265.0,0.00010792,2]
[420875942,1776693042513,-277.986,0.00010792,2]
[420875943,1776693042522,-1219.0,0.00010792,2]
[420875944,1776693042532,-927.0,0.00010792,2]
[420875945,1776693042541,-416.0,0.00010792,2]
[420875946,1776693042550,-2474.0,0.00010792,2]
[420875947,1776693042559,-284.66,0.00010831,2]
[420875948,1776693042568,-250.0,0.00010837,2]
[420875950,1776693042577,-334.9344153,0.00010855,2]
[420875953,1776693042586,-181.14,0.00010897,2]
[420875956,1776693042596,-2866.838,0.00010898,2]
[420875958,1776693042605,-1952.06618351,0.000109,2]
[420875959,1776693042613,-1952.06618349,0.000109,2]
[420875960,1776693042622,-1952.06618349,0.000109,2]
[420875961,1776693042631,-1952.06618349,0.000109,2]
[420875963,1776693042640,-1952.06618349,0.000109,2]
[420875965,1776693042649,-151.16,0.00010901,2]
[420875967,1776693042658,-151.0,0.00010901,2]
[420875968,1776693042667,-151.0,0.00010902,2]
[420875969,1776693042676,-151.0,0.00010902,2]
[420875970,1776693042685,-151.0,0.00010908,2]
[420875971,1776693042694,-1952.06618349,0.00010923,2]
[420875972,1776693042703,-2112.375985,0.00010926,2]
[420875973,1776693042712,-500.0,0.00010958,2]
[420875974,1776693042721,-500.0,0.00010958,3]
[420875975,1776693042730,-500.0,0.00010958,4]
[420875976,1776693042739,-500.0,0.00010958,5]
[420875977,1776693042748,-500.0,0.00010958,2]
[420875978,1776693042757,-500.0,0.00010958,3]
[420875979,1776693042766,-500.0,0.00010958,4]
[420875980,1776693042775,-500.0,0.00010958,5]
[420875981,1776693042785,-500.0,0.00010958,6]
[420875982,1776693042794,-2000.0,0.00010959,2]
[420875983,1776693042803,-200.0,0.00010959,2]
[420875984,1776693042812,-200.0,0.00010959,2]
[420875985,1776693042821,-200.0,0.00010959,2]
[420875986,1776693042830,-500.0,0.00010959,2]
[420875987,1776693042840,-330.91996524,0.00010959,2]
[420875988,1776693042849,-3240.0,0.00010959,2]
[420875989,1776693042858,-150.0,0.00010959,2]
[420875990,1776693042867,-151.0,0.00010959,2]
[420875991,1776693042876,-150.0,0.00010983,21]
[420875992,1776693042885,-150.0,0.00010983,21]
[420875993,1776693042894,-23183.3598201,0.00010997,2]
[420875994,1776693042903,-561.2,0.00011,2]
[420875995,1776693042912,-561.2,0.00011,2]
[420875996,1776693042921,-636.02,0.00011,2]
[420875997,1776693042930,-254.1,0.00011,2]
[420875998,1776693042939,-254.1,0.00011,2]
[420875999,1776693042948,-323.58,0.00011,2]
[420876000,1776693042957,-211.64,0.00011,2]
[420876001,1776693042967,-211.64,0.00011,2]
[420876002,1776693042978,-2923.6269493,0.00011,2]
[420876003,1776693042987,-9097.0,0.00011,2]
[420876004,1776693042997,-3292.0,0.00011042,2]
[420876005,1776693043006,-200.0,0.00011084,2]
[420876006,1776693043016,-217.0,0.00011084,2]
[420876007,1776693043025,-250.0,0.00011084,2]
[420876008,1776693043034,-150.348,0.00011084,2]
[420876009,1776693043044,-150.0,0.00011084,2]
[420876010,1776693043053,-151.0,0.00011085,2]
[420876011,1776693043062,-151.0,0.00011085,2]
[420876012,1776693043072,-151.0,0.00011085,2]
[420876013,1776693043082,-200.0,0.00011096,2]
[420876014,1776693043092,-1386.78395259,0.00011096,2]
[420876015,1776693043101,-151.0,0.00011096,2]
[420876016,1776693043110,-300.0,0.00011098,2]
[420876017,1776693043129,-300.0,0.00011098,2]
[420876018,1776693043139,-300.0,0.00011139,2]
[420876019,1776693043149,-161379.7311565,0.0001114,2]
[420876020,1776693043158,-3009.8366492,0.0001114,2]
[420876021,1776693043167,-151.0,0.00011141,2]
[420876022,1776693043177,-151.0,0.00011141,2]
[420876023,1776693043186,-1058.91104,0.00011141,2]
[420876024,1776693043196,-1058.91104,0.00011141,2]
[420876025,1776693043205,-1058.91104,0.00011141,2]
[420876026,1776693043215,-151.0,0.00011141,2]
[420876027,1776693043224,-1058.911048,0.00011141,2]
[420876028,1776693043233,-151.0,0.00011141,2]
[420876029,1776693043243,-151.0,0.00011141,2]
[420876030,1776693043252,-151.0,0.00011141,2]
[420876031,1776693043262,-1270.017594,0.00011141,2]
[420876032,1776693043272,-1270.017594,0.00011141,2]
[420876033,1776693043282,-1270.017594,0.00011141,2]
[420876034,1776693043291,-1270.017595,0.00011141,2]
[420876035,1776693043300,-330.97,0.00011193,2]
[420876036,1776693043310,-5530.0,0.000112,3]
[420876037,1776693043319,-561.2,0.000112,2]
[420876038,1776693043329,-254.1,0.000112,2]
[420876039,1776693043338,-211.64,0.000112,2]
[420876040,1776693043348,-150.0,0.00011201,2]
[420876041,1776693043357,-150.0,0.00011201,2]
[420876042,1776693043366,-150.0,0.00011201,2]
[420876043,1776693043376,-599.60298507,0.00011209,2]
[420876044,1776693043386,-695.39793187,0.00011209,2]
[420876045,1776693043395,-1592.87721993,0.0001121,2]
[420876046,1776693043404,-200.0,0.0001121,2]
[420876047,1776693043414,-891.61887448,0.0001121,2]
[420876048,1776693043423,-209.40437684,0.0001121,2]
[420876049,1776693043433,-233.51889341,0.0001121,2]
[420876050,1776693043442,-301.06735584,0.0001125,2]
[420876051,1776693043452,-21631.66003934,0.0001131,2]
[420876052,1776693043462,-779.83,0.00011314,2]
[420876053,1776693043471,-7411.0094015,0.00011344,2]
[420876054,1776693043480,-231.079458,0.00011347,2]
[420876055,1776693043490,-590.848741,0.00011347,2]
[420876056,1776693043500,-471.3347918,0.00011356,2]
[420876057,1776693043509,-1952.06618349,0.00011412,2]
[420876058,1776693043524,-5172.9067894,0.00011444,2]
[420876059,1776693043535,-152.0,0.00011475,3]
[420876060,1776693043545,-178.02852215,0.000115,9]
[420876061,1776693043554,-5530.0,0.000115,5]
[420876062,1776693043563,-164.92,0.00011507,2]
[420876063,1776693043573,-2636.09,0.00011507,2]
[420876064,1776693043583,-181.140117,0.00011627,2]
[420876065,1776693043592,-200.0,0.00011644,2]
[420876066,1776693043602,-151.0,0.00011644,2]
[420876067,1776693043612,-490.79123853,0.00011644,2]
[420876068,1776693043622,-284.66,0.00011689,2]
[420876069,1776693043631,-151.0,0.00011722,2]
[420876070,1776693043640,-151.0,0.00011722,2]
[420876071,1776693043650,-151.0,0.00011722,2]
[420876072,1776693043659,-151.0,0.00011724,2]
[420876073,1776693043669,-151.0,0.00011724,2]
[420876074,1776693043679,-151.0,0.00011725,2]
[420876075,1776693043689,-151.0,0.00011725,2]
[420876076,1776693043699,-1651.81367706,0.00011758,2]
[420876077,1776693043709,-200.0,0.00011758,2]
[420876078,1776693043719,-737.55793513,0.00011758,2]
[420876079,1776693043729,-217.15233878,0.00011758,2]
[420876080,1776693043738,-242.15909246,0.00011758,2]
[420876081,1776693043748,-1604.74843341,0.0001176,2]
[420876082,1776693043758,-334.9344153,0.00011785,2]
[420876083,1776693043768,-2000.0,0.00011798,2]
[420876084,1776693043780,-1600.0,0.00011798,2]
[420876085,1776693043790,-1936.78,0.00011875,2]
[420876086,1776693043799,-300.0,0.00011899,2]
[420876087,1776693043809,-300.0,0.00011899,2]
[420876088,1776693043819,-33238.07892224,0.000119,2]
[420876092,1776693048181,-351.05655365,0.0001,2]
[420876093,1776693048191,-151.0,0.00010068,2]
[420876094,1776693048200,-1837.99710085,0.00010892,2]
[420876095,1776693051160,-4192.00289915,0.00010892,2]
[420876096,1776693051171,-20721.8175257,0.000119,2]
[420876097,1776693051180,-25000.0,0.000119,2]
[420876098,1776693051190,-301.06735584,0.000119,2]
[420876099,1776693051200,-435.80785392,0.000119,2]
[420876100,1776693051209,-1900.2585736,0.000119,2]
[420876101,1776693051218,-1952.06618349,0.000119,2]
[420876102,1776693051228,-152.0,0.00011938,4]
[420876103,1776693051238,-499.81,0.00011942,2]
[420876104,1776693051247,-216.08,0.00011942,2]
[420876105,1776693051256,-431.691472,0.00011973,2]
[420876106,1776693051266,-431.691472,0.00011973,2]
[420876107,1776693051275,-431.691472,0.00011973,2]
[420876108,1776693051285,-431.691472,0.00011973,2]
[420876109,1776693051295,-431.691472,0.00011973,2]
[420876110,1776693051304,-431.691472,0.00011973,2]
[420876111,1776693051313,-431.691472,0.00011973,2]
[420876112,1776693051322,-431.691472,0.00011973,2]
[420876113,1776693051331,-431.691472,0.00011973,2]
[420876114,1776693051341,-431.691472,0.00011973,2]
[420876115,1776693051350,-431.691472,0.00011973,2]
[420876116,1776693051359,-431.691472,0.00011973,2]
[420876117,1776693051368,-431.691472,0.00011973,2]
[420876118,1776693051377,-431.691472,0.00011973,2]
[420876119,1776693051386,-431.691472,0.00011973,2]
[420876120,1776693051395,-431.691472,0.00011973,2]
[420876121,1776693051404,-431.691472,0.00011973,2]
[420876122,1776693051413,-431.691472,0.00011973,2]
[420876123,1776693051423,-431.691472,0.00011973,2]
[420876124,1776693051432,-431.691468,0.00011973,2]
[420876125,1776693051442,-198.92,0.00011988,2]
[420876126,1776693051451,-150.0,0.00011988,2]
[420876127,1776693051460,-753.69842267,0.0001199,2]
[420876128,1776693051470,-753.69842267,0.0001199,2]
[420876129,1776693051479,-300.0,0.00011996,2]
[420876130,1776693051488,-15929.61868812,0.00011997,2]
[420876131,1776693051504,-3103.0,0.00011997,2]
[420876132,1776693051536,-65049.97723219,0.00011997,2]
[420876133,1776693051545,-120414.20980103,0.00011997,2]
[420876134,1776693051554,-50000.0,0.00012,2]
[420876135,1776693051563,-25050.14272094,0.00012,2]
[420876136,1776693055677,150.0,0.000164,120]
[420876137,1776693242182,150.0,0.000164,120]
[420876138,1776693345288,509.33,8e-05,2]
[420876140,1776693615254,150.0,0.000164,120]
[420876141,1776693755711,-1200.0,8.463e-05,2]
[420876142,1776693755743,-250.0,8.463e-05,2]
[420876143,1776693755772,-193.0,8.464e-05,2]
[420876144,1776693755802,-1714.01,8.464e-05,2]
[420876145,1776693755928,-2629.10409426,8.464e-05,2]
[420876146,1776693761595,-656.88590574,8.464e-05,2]
[420876147,1776693761623,-150.0,8.464e-05,2]
[420876148,1776693761654,-250.0,8.464e-05,2]
[420876149,1776693761683,-500.0,8.464e-05,2]
[420876150,1776693761713,-527.52833376,8.464e-05,2]
[420876151,1776693761742,-500.0,8.464e-05,2]
[420876152,1776693761770,-500.0,8.464e-05,2]
[420876153,1776693761798,-500.0,8.464e-05,2]
[420876154,1776693761827,-500.0,8.464e-05,2]
[420876155,1776693761856,-500.0,8.464e-05,2]
[420876156,1776693761885,-331.181521,8.464e-05,2]
[420876157,1776693762107,-168.818479,8.464e-05,2]
[420876161,1776694129182,151.0,7.644e-05,2]
[420876180,1776694232617,-496.2484482,8.311e-05,2]
[420876181,1776694232656,-703.7515518,8.311e-05,2]
[420876182,1776694232666,-250.0,8.312e-05,2]
[420876183,1776694232676,-191.49,8.312e-05,2]
[420876184,1776694232686,-29535.76384681,8.312e-05,2]
[420876185,1776694232697,-63885.08464955,8.312e-05,2]
[420876192,1776694238278,-1893.43986785,8.312e-05,2]
[420876193,1776694238489,-75748.74591576,8.312e-05,2]
[420876194,1776694238501,-48993.48432967,8.312e-05,2]
[420876195,1776694238513,-1826.1386616,8.312e-05,2]
[420876200,1776694240019,-548.637107,8.312e-05,2]
[420876241,1776694245796,-2787.06533712,8.312e-05,2]
[420876242,1776694246308,-1588.671315,8.312e-05,2]
[420876244,1776694250789,-84102.57137915,8.312e-05,2]
[420876245,1776694250799,-191.49,8.334e-05,2]
[420876246,1776694250809,-239.36,8.379e-05,2]
[420876247,1776694250819,-150.0,8.579e-05,2]
[420876248,1776694250828,-299.99,8.58e-05,2]
[420876249,1776694250837,-9999.99,8.58e-05,2]
[420876250,1776694250847,-999.99,8.58e-05,2]
[420876251,1776694251265,-9999.99,8.58e-05,2]
[420876252,1776694251275,-150.99,8.58e-05,2]
[420876253,1776694251285,-26641.82,8.58e-05,2]
[420876254,1776694251296,-1614.37,8.581e-05,2]
[420876255,1776694251306,-165.24,8.581e-05,2]
[420876256,1776694251315,-4765.68,8.581e-05,2]
[420876257,1776694251325,-14912.97,8.581e-05,2]
[420876258,1776694251334,-2144.34,8.581e-05,2]
[420876259,1776694251344,-968.39,8.581e-05,2]
[420876260,1776694251354,-2807.28353959,8.638e-05,2]
[420876261,1776694251363,-500.0,8.702e-05,2]
[420876262,1776694251373,-500.0,8.702e-05,2]
[420876263,1776694251393,-500.0,8.702e-05,2]
[420876264,1776694251405,-500.0,8.702e-05,2]
[420876265,1776694251416,-500.0,8.702e-05,2]
[420876266,1776694251427,-500.0,8.702e-05,2]
[420876267,1776694251437,-500.0,8.702e-05,2]
[420876268,1776694251447,-500.0,8.702e-05,2]
[420876269,1776694251458,-500.0,8.702e-05,2]
[420876270,1776694251469,-500.0,8.702e-05,2]
[420876271,1776694251479,-500.0,8.702e-05,2]
[420876272,1776694251489,-500.0,8.702e-05,2]
[420876273,1776694251499,-500.0,8.702e-05,2]
[420876274,1776694251509,-500.0,8.702e-05,2]
[420876275,1776694251519,-500.0,8.702e-05,2]
[420876276,1776694251530,-500.0,8.702e-05,2]
[420876277,1776694251540,-500.0,8.702e-05,2]
[420876278,1776694251551,-208.2511531,8.702e-05,2]
[420876279,1776694251561,-459.8145618,8.833e-05,2]
[420876280,1776694251571,-500.0,8.834e-05,2]
[420876281,1776694251581,-150.0,8.834e-05,2]
[420876282,1776694251590,-207.82537846,8.834e-05,2]
[420876283,1776694251600,-500.0,8.834e-05,2]
[420876284,1776694251610,-500.0,8.834e-05,2]
[420876285,1776694251621,-500.0,8.834e-05,2]
[420876286,1776694251631,-500.0,8.834e-05,2]
[420876287,1776694251640,-500.0,8.834e-05,2]
[420876288,1776694251651,-500.0,8.834e-05,2]
[420876289,1776694251660,-500.0,8.834e-05,2]
[420876290,1776694251670,-500.0,8.834e-05,2]
[420876291,1776694251680,-784.0,8.834e-05,2]
[420876292,1776694251690,-500.0,8.834e-05,2]
[420876293,1776694251699,-784.0,8.834e-05,2]
[420876294,1776694251709,-500.0,8.834e-05,2]
[420876295,1776694251719,-500.0,8.834e-05,2]
[420876296,1776694251729,-784.0,8.834e-05,2]
[420876297,1776694251739,-500.0,8.834e-05,2]
[420876298,1776694251748,-784.0,8.834e-05,2]
[420876299,1776694251758,-500.0,8.834e-05,2]
[420876300,1776694251768,-784.0,8.834e-05,2]
[420876301,1776694251783,-500.0,8.834e-05,2]
[420876302,1776694251793,-784.0,8.834e-05,2]
[420876303,1776694251804,-500.0,8.834e-05,2]
[420876304,1776694251814,-784.0,8.834e-05,2]
[420876305,1776694251824,-500.0,8.834e-05,2]
[420876306,1776694251834,-784.0,8.834e-05,2]
[420876307,1776694251844,-500.0,8.834e-05,2]
[420876308,1776694251854,-784.0,8.834e-05,2]
[420876309,1776694251865,-784.0,8.834e-05,2]
[420876310,1776694251875,-500.0,8.834e-05,2]